Cogmind - Beta 13 @@@ ROGUE MODE // 2024.04.03 @ 00:53:12 Player: lazy_engineer Result: Destroyed by D-53 Grenadier with Mini Grenade Launcher Performance ------------- Evolutions (0) 0 Regions Visited (4) 800 Robots Destroyed (26) 130 Value Destroyed (528) 528 Prototype IDs (25) 500 Alien Tech Used (0) 0 Bonus (0) 0 TOTAL SCORE: 1958 Bonus ------- None Cogmind --------- Core Integrity 0/250 Matter 291/300 Energy 78/100 System Corruption 4% Temperature Cool (0) Movement Core (450) Ox8 Location -9/Mines Parts ------- > --- POWER (1) -------- (None) > --- PROPULSION (2) --- (None) > --- UTILITY (2) ------ Large Storage Unit Hacking Suite > --- WEAPON (2) ------- Gauss Rifle Makeshift Axe > --- INVENTORY (15) --- Light Treads Small Storage Unit Humpback Weight Redist. System Structural Scanner Signal Interpreter Transport Network Coupler Transport Network Coupler Light Armor Plating Hacking Suite Assault Rifle Assault Rifle Datajack Peak State ------------ > --- POWER ------------ Light Nuclear Core > --- PROPULSION ------- Light Treads Light Treads > --- UTILITY ---------- Large Storage Unit Hacking Suite > --- WEAPON ----------- Datajack Makeshift Spear > --- INVENTORY -------- Light Treads Light Treads Light Treads Small Storage Unit Structural Scanner Signal Interpreter Transport Network Coupler Light Armor Plating Hacking Suite Assault Rifle Assault Rifle Light Assault Rifle Light Assault Rifle Light Assault Rifle Gauss Rifle [Rating: 16] Favorites ----------- Power Light Nuclear Core Engine Ion Engine Power Core Light Nuclear Core Propulsion Light Treads Treads Light Treads Wheel Wheel Utility Hacking Suite Storage Large Storage Unit Hackware Hacking Suite Weapon Light Assault Rifle Energy Gun EM Pulse Gun Ballistic Gun Light Assault Rifle Slashing Weapon Makeshift Axe Piercing Weapon Makeshift Spear Special Melee Weapon Datajack Build | -11 -10 -10 -10 -9 ------- Run | Yrd Mat Min Exi Min Slots Evolved . | . . . . . Power . | . . . . . Propulsion . | . . . . . Utility . | . . . . . Weapon . | . . . . . Parts Attached 39 | 8 22 . 8 1 Power 4 | 1 2 . 1 . Engine 3 | 1 2 . . . Core 1 | . . . 1 . Reactor . | . . . . . Propulsion 11 | 3 6 . 2 . Treads 10 | 2 6 . 2 . Leg . | . . . . . Wheel 1 | 1 . . . . Hover . | . . . . . Flight . | . . . . . Utility 4 | 2 2 . . . Device . | . . . . . Storage 3 | 2 1 . . . Processor . | . . . . . Hackware 1 | . 1 . . . Protection . | . . . . . Artifact . | . . . . . Weapon 20 | 2 12 . 5 1 Energy Gun 1 | 1 . . . . Energy Cannon . | . . . . . Ballistic Gun 13 | 1 10 . 1 1 Ballistic Cannon . | . . . . . Launcher . | . . . . . Special Weapon . | . . . . . Impact Weapon . | . . . . . Slashing Weapon 1 | . . . 1 . Piercing Weapon 1 | . . . 1 . Special Melee Weapon 4 | . 2 . 2 . Unidentified Prototypes . | . . . . . Corrupted Parts 3 | . 3 . . . System Corruption 4 | . 4 . . . Parts Lost 11 | . 8 . . 3 Power 3 | . 2 . . 1 Propulsion 4 | . 2 . . 2 Utility . | . . . . . Weapon 4 | . 4 . . . Highest Loss Streak 6 | . 6 . . 3 To Critical Strikes . | . . . . . Average Slot Usage (%) 96 | . 96 85 97 99 Engine 6 | . 13 . . . Core 5 | . . . 12 13 Treads 26 | . 24 28 28 28 Storage 14 | . 14 14 14 14 Hackware 13 | . 13 14 14 14 Energy Gun 1 | . 2 . . . Ballistic Gun 15 | . 25 28 5 . Slashing Weapon 1 | . . . 1 14 Piercing Weapon 2 | . . . 6 . Special Melee Weapon 6 | . . . 13 14 Naked Turns . | . . . . . Heaviest Build 30 | 19 26 23 30 29 Greatest Support 40 | 10 40 40 40 40 Greatest Overweight (x) 1 | 1 1 . . 1 Average Overweight (x) . | . . . . . Largest Inventory Capacity 15 | 8 15 15 15 15 Average Capacity 12 | 7 10 15 15 15 Most Carried 15 | 5 13 12 15 14 Average Carried 10 | 2 7 12 13 14 Final Capacity 15 | 8 15 15 15 15 Final Carried 14 | 2 12 12 14 14 Class Distribution -------------------- 65% | Scavenger-Mutant 34% | Mutant Dominant Class ---------------- Scavenger-Mutant | -10/Materials Mutant | -10/Mines Scavenger-Mutant | -10/Exiles Scavenger-Mutant | -9/Mines Resources | -11 -10 -10 -10 -9 ----------- Run | Yrd Mat Min Exi Min Matter Collected 903 | 83 644 . 152 24 Remotely . | . . . . . Salvage Created 1155 | 92 743 . 310 10 Parts 69 | 2 52 . 15 . Haulers Intercepted 2 | . 2 . . . Recyclers Shooed . | . . . . . Parts Field Recycled . | . . . . . Retrieved Matter . | . . . . . Parts Self-Destructed . | . . . . . Prevented . | . . . . . Kills | -11 -10 -10 -10 -9 ------- Run | Yrd Mat Min Exi Min Combat Hostiles Destroyed 20 | . 19 . . 1 Melee 1 | . . . . 1 Guns 19 | . 19 . . . Classes Destroyed 7 | 1 5 . . 1 Hauler 2 | . 2 . . . Recycler 1 | 1 . . . . Operator 2 | . 2 . . . Watcher 2 | . 2 . . . Swarmer 8 | . 8 . . . Grunt 11 | . 11 . . . Assembled 1 | . . . . 1 Best Kill Streak 6 | 1 6 . . 1 Combat Bots Only 3 | . 3 . . 1 Max Kills in Single Turn 1 | 1 1 . . 1 Gunslinging . | . . . . . Exploded . | . . . . . Melee 1 | . . . . 1 Uniques/NPCs Destroyed . | . . . . . Combat | -11 -10 -10 -10 -9 -------- Run | Yrd Mat Min Exi Min Hostile Shots Fired 146 | . 130 . . 16 Missed 33 | . 30 . . 3 Damage Taken 1572 | . 1124 . . 448 Core 267 | . 208 . . 59 Absorbed by Shields . | . . . . . Regen/Repaired (Parts) 60 | . 60 . . . Core Remaining (%) 100 | 100 . . . . Volleys Fired 97 | 8 81 . 7 1 Largest 2 | 2 2 . 1 1 Hottest 60 | 60 60 . 20 28 Shots Fired 173 | 10 155 . 7 1 Gun 173 | 10 155 . 7 1 Cannon . | . . . . . Launcher . | . . . . . Special . | . . . . . Kinetic 139 | 8 123 . 7 1 Thermal . | . . . . . Explosive . | . . . . . Electromagnetic 34 | 2 32 . . . Robot Hit Streak 20 | 7 12 . 19 20 Robot Miss Streak 4 | 1 4 . . . Penetration Max . | . . . . . Secondary Targets 3 | . 3 . . . Max Gunslinging Chain 1 | . 1 . . . Shots Hit Robots 146 | 8 100 . 35 3 Core Hits 57 | 2 44 . 10 1 Critical Kills . | . . . . . Critical Parts Destroyed . | . . . . . Critical Strikes 2 | . 1 . 1 . Corrupt 1 | . 1 . . . Impale 1 | . . . 1 . Melee Attacks 33 | . . . 28 5 Impact . | . . . . . Slashing 8 | . . . 3 5 Piercing 15 | . . . 15 . Sneak Attacks 9 | . . . 9 . Combat Hostiles 5 | . . . 5 . Follow-up Attacks . | . . . . . Damage Inflicted 2541 | 103 1127 . 1186 125 Guns 1315 | 103 1127 . 63 22 Cannons . | . . . . . Explosions . | . . . . . Melee 1226 | . . . 1123 103 Ramming . | . . . . . Kinetic 984 | 90 809 . 63 22 Thermal . | . . . . . Explosive . | . . . . . Electromagnetic 331 | 13 318 . . . Impact . | . . . . . Slashing 321 | . . . 218 103 Piercing 905 | . . . 905 . Highest Corruption 4 | . 4 4 4 4 Average Corruption 3 | . 3 4 4 4 Corruption Purged . | . . . . . Corruption Blocked . | . . . . . Effects 44 | . 14 2 23 5 Message Errors 13 | . 4 1 7 1 Matter Fused 10 | . 1 1 6 2 Heat Flow Errors 7 | . 3 . 4 . Energy Discharges 4 | . 1 . 2 1 Parts Rejected 5 | . 3 . 2 . Data Loss (minor) 2 | . . . 1 1 Data Loss (major) 3 | . 2 . 1 . Overload Shots . | . . . . . Overflow Damage 150 | . . . 142 8 Projectiles . | . . . . . Explosions . | . . . . . Melee 150 | . . . 142 8 Knockbacks . | . . . . . Impact . | . . . . . Kinetic . | . . . . . Secondary . | . . . . . Self-Inflicted Damage . | . . . . . Shots . | . . . . . Rammed . | . . . . . Targets Rammed . | . . . . . Kicked . | . . . . . Crushed . | . . . . . Highest Temperature 286 | . 286 . 176 . Average Temperature 72 | . 68 . 83 . Received Heat Transfer 426 | . 426 . . . Effects 1 | . 1 . . . Energy Bleed 1 | . 1 . . . Siege Activations . | . . . . . Robots Corrupted . | . . . . . Combat Hostiles . | . . . . . Parts Fried 3 | . 3 . . . Impact Corruptions . | . . . . . Robots Melted . | . . . . . Combat Hostiles . | . . . . . Parts Melted . | . . . . . Heat Transferred . | . . . . . Parts Sabotaged . | . . . . . Parts Stolen . | . . . . . Parts Stripped . | . . . . . Power Chain Reactions . | . . . . . Alert | -11 -10 -10 -10 -9 ------- Run | Yrd Mat Min Exi Min Peak Influence 348 | 5 348 46 . 15 Initial 46 | . 3 46 . . Average 143 | 1 185 46 . . Maximum Alert Level 1 | . 1 . . . Low Security (%) 69 | 100 59 100 . 100 Level 1 30 | . 40 . . . Level 2 . | . . . . . Level 3 . | . . . . . Level 4 . | . . . . . Level 5 . | . . . . . High Security . | . . . . . Max Security . | . . . . . Squads Dispatched 7 | . 7 . . . Investigation 5 | . 5 . . . Extermination . | . . . . . Reinforcement 2 | . 2 . . . Assault . | . . . . . Garrison . | . . . . . Intercept . | . . . . . Searches Triggered . | . . . . . Construction Impeded . | . . . . . Haulers Reinforced . | . . . . . Active Scanning Responses . | . . . . . Cargo Convoy Interrupts . | . . . . . Stealth | -11 -10 -10 -10 -9 --------- Run | Yrd Mat Min Exi Min Distress Signals 1 | . 1 . . . Communications Jammed . | . . . . . Distress Signals . | . . . . . Times Spotted 36 | . 29 . . 7 Peak Tracking Total 7 | . 7 . . 3 Tactical Retreats 1 | . 1 . . . Traps | -11 -10 -10 -10 -9 ------- Run | Yrd Mat Min Exi Min Traps Triggered 1 | . 1 . . . Indirectly . | . . . . . Trap Hack Attempts . | . . . . . Triggered . | . . . . . Disarmed . | . . . . . Reprogrammed . | . . . . . Reused . | . . . . . Traps Extracted . | . . . . . Installed . | . . . . . Triggered . | . . . . . Objects Rigged 1 | . 1 . . . Machines | -11 -10 -10 -10 -9 ---------- Run | Yrd Mat Min Exi Min Machines Disabled . | . . . . . Max in Single Turn . | . . . . . Machines Repaired . | . . . . . Machines Dismantled . | . . . . . Machines Sabotaged . | . . . . . Overloaded Fab Kills . | . . . . . Hacking | -11 -10 -10 -10 -9 --------- Run | Yrd Mat Min Exi Min Machines Accessed 10 | . 9 . 1 . Terminals 6 | . 6 . . . Fabricators . | . . . . . Repair Stations 1 | . 1 . . . Recycling Units 2 | . 2 . . . Scanalyzers . | . . . . . Garrison Access . | . . . . . Total Hacks 42 | . 41 . 1 . Successful 31 | . 30 . 1 . Failed 11 | . 11 . . . Catastrophic . | . . . . . Database Lockouts . | . . . . . Manual 27 | . 26 . 1 . Terminals 33 | . 33 . . . Fabricators . | . . . . . Repair Stations 4 | . 4 . . . Recycling Units 4 | . 4 . . . Scanalyzers . | . . . . . Garrison Access . | . . . . . Terminal Hacks 11 | . 10 . 1 . Record 1 | . 1 . . . Prototype ID Bank 1 | . 1 . . . Emergency Access Points 1 | . 1 . . . Terminal Index 1 | . 1 . . . Locate Traps 1 | . 1 . . . Transport Status 1 | . 1 . . . Hauler Manifests 1 | . 1 . . . Zone Layout 3 | . 3 . . . Derelict Proto ID Bank 1 | . . . 1 . Fabricator Hacks . | . . . . . Repair Station Hacks 4 | . 4 . . . Scan Component 2 | . 2 . . . Repair 2 | . 2 . . . Recycling Unit Hacks 2 | . 2 . . . Report Inventory 2 | . 2 . . . Scanalyzer . | . . . . . Garrison Access Hacks . | . . . . . Unauthorized Hacks 14 | . 14 . . . Terminals 12 | . 12 . . . Track 2 | . 2 . . . Assimilate 2 | . 2 . . . Botnet 5 | . 5 . . . Detonate 1 | . 1 . . . Disrupt 1 | . 1 . . . Operators 1 | . 1 . . . Fabricators . | . . . . . Repair Stations . | . . . . . Recycling Units 2 | . 2 . . . Tunnel 2 | . 2 . . . Scanalyzers . | . . . . . Garrison Access . | . . . . . Data Cores Recovered . | . . . . . Used . | . . . . . Hacking Detections 7 | . 7 . . . Full Trace Events 6 | . 6 . . . Feedback Events . | . . . . . Feedback Blocked . | . . . . . Robot Schematics Acquired . | . . . . . Robots Built . | . . . . . Authchips . | . . . . . Time . | . . . . . Total Robot Build Rating . | . . . . . Part Schematics Acquired . | . . . . . Parts Built . | . . . . . Authchips . | . . . . . Time . | . . . . . Total Part Build Rating . | . . . . . Parts Repaired 2 | . 2 . . . Time 52 | . 52 . . . Parts Recycled . | . . . . . Recycled Matter . | . . . . . Retrieved Matter . | . . . . . Retrieved Components . | . . . . . Parts Scanalyzed . | . . . . . Part Schematics Acquired . | . . . . . Parts Damaged . | . . . . . Bothacking | -11 -10 -10 -10 -9 ------------ Run | Yrd Mat Min Exi Min Used RIF Installer . | . . . . . Robots Hacked 3 | . . . 3 . Non-combat . | . . . . . Combat 3 | . . . 3 . Robot Hacks Applied 3 | . . . 3 . parse_system 3 | . . . 3 . Relay Couplers Released . | . . . . . Fabnet Peak Effective % . | . . . . . Robots Rewired 3 | . . . 3 . Allies Hacked . | . . . . . Hacks Repelled . | . . . . . Allies | -11 -10 -10 -10 -9 -------- Run | Yrd Mat Min Exi Min Total Allies 6 | . . . 3 3 Largest Group 3 | . . . 3 3 Highest-Rated Group 40 | . . . 24 40 Highest-Rated Ally 16 | . . . 8 16 Total Orders . | . . . . . Ally Attacks 6 | . . . . 6 Total Damage 52 | . . . . 52 Kills . | . . . . . Allies Corrupted . | . . . . . Allies Melted . | . . . . . Intel | -11 -10 -10 -10 -9 ------- Run | Yrd Mat Min Exi Min Robot Analysis Total . | . . . . . Derelict Logs Recovered 1 | . . . . 1 Drone Launches . | . . . . . Drone Recoveries . | . . . . . Exploration | -11 -10 -10 -10 -9 ------------- Run | Yrd Mat Min Exi Min Turns Passed 2735 | 83 1314 119 990 229 Spaces Moved 1480 | 59 654 71 561 135 Core 17 | 17 . . . . Treads 1302 | . 535 71 561 135 Legs . | . . . . . Wheels 161 | 42 119 . . . Hover . | . . . . . Flight . | . . . . . Fastest Speed 50 | 50 95 160 160 160 Average Speed 151 | 81 148 160 160 160 Slowest Speed 240 | 95 240 160 160 240 Overloaded Moves . | . . . . . Propulsion Burnouts . | . . . . . Robots Hopped . | . . . . . Cave-ins Triggered . | . . . . . Exploration Rate (%) 47 | 3 92 21 89 30 Regions Visited 4 Branch Regions 3 Pre-discovered Areas 3 | . 2 . . 1 Known Exits Taken . | . . . . . Unknown Exits Taken 4 | 1 1 1 1 . Scrap Searched . | . . . . . Spaces Dug . | . . . . . Terrain Destroyed . | . . . . . Melee . | . . . . . Projectile . | . . . . . AOE . | . . . . . Terrain Rammed . | . . . . . Walls Destroyed . | . . . . . Machines Disabled . | . . . . . Actions | -11 -10 -10 -10 -9 --------- Run | Yrd Mat Min Exi Min Total 1779 | 82 853 77 625 142 Wait 76 | . 69 7 . . Move 1476 | 58 653 70 560 135 Hop . | . . . . . Pick Up 43 | 8 22 . 13 . Fast Attach 2 | 1 1 . . . Attach 20 | 6 10 . 4 . Detach . | . . . . . Swap 17 | 1 11 . 4 1 Drop 15 | . 6 . 9 . Fire 97 | 8 81 . 7 1 Melee 33 | . . . 28 5 Ram . | . . . . . Kick . | . . . . . Crush . | . . . . . Escape Stasis . | . . . . . Rewire . | . . . . . Trap . | . . . . . Miscellaneous . | . . . . . Route ------- -11/Scrapyard -10/Materials (discovered 5 exits: [*Mat x3] / [*Min x2]) -10/Mines -10/Exiles -9/Mines History --------- Turn | Location | Event 8 | -11/Scrapyard | Discovered new exit (range 15) 84 | -11/Scrapyard | Entered Materials 90 | -10/Materials | Discovered new exit (range 15) 185 | -10/Materials | Discovered new exit (range 10) 257 | -10/Materials | Discovered new exit (range 16) 312 | -10/Materials | Build established: Mutant 333 | -10/Materials | Core integrity fell below 50% 375 | -10/Materials | Lost 6 parts (1p1n4w) 591 | -10/Materials | Discovered new exit (range 16) 856 | -10/Materials | Repaired Lgt. Treads 882 | -10/Materials | Repaired Lgt. Treads 904 | -10/Materials | Build established: Scavenger-Mutant 1285 | -10/Materials | Discovered new exit (range 13) 1362 | -10/Materials | Core integrity fell below 20% 1398 | -10/Materials | Entered Mines 1432 | -10/Mines | Met a Derelict bent on vengeance 1511 | -10/Mines | Deemed a non-threat by the Exiles lab entrance 1511 | -10/Mines | Discovered new exit (range 5) 1517 | -10/Mines | Entered Exiles 1517 | -10/Exiles | Found Exiles lab destroyed 1626 | -10/Exiles | Build established: Mutant 1956 | -10/Exiles | Build established: Scavenger-Mutant 2191 | -10/Exiles | Opened EX-Vault 2200 | -10/Exiles | Found Prototype Device 2240 | -10/Exiles | Identified PSU Rigger 2482 | -10/Exiles | Discovered new exit (range 11) 2507 | -10/Exiles | Entered Mines 2507 | -9/Mines | Accompanied by 3 allies 2508 | -9/Mines | Assembled infested the area 2513 | -9/Mines | Assisted by a Guerilla fighting off Assembled 2556 | -9/Mines | Lost 4 allies 2684 | -9/Mines | Assisted by bots powering up and referring to "LRC-V3" 2685 | -9/Mines | Learned location of Zion (-7) 2736 | -9/Mines | Destroyed by D-53 Grenadier with Mini Grenade Launcher Last Messages --------------- 02543_ as-06263 destroyed. 02552_ 7Z 02617_ System corrupted: Component data lost. 02643_ System corrupted: Energy discharge (-40). 02684_ Trooper 2a: "Hello LRC-V3. What is your command?" 02684_ Mercenary 2a: "Hello LRC-V3. What is your command?" 02684_ Trooper 2b: "Hello LRC-V3. What is your command?" 02685_ Acquired derelict log, extracted data. World map updated: -7/Zion. 02717_ System corrupted: Matter fused (-7). 02726_ Mercenary 2a destroyed. 02728_ Lgt. Nuclear Core destroyed. 02728_ Trooper 2a destroyed. 02728_ Trooper 2b destroyed. 02729_ Acquired 24 matter. 02731_ Lgt. Treads destroyed. 02732_ The unstable cave ceiling collapses. 02736_ Slug penetrates D-53 Grenadier. 02736_ Lgt. Treads destroyed. Map ----- +----------------------------------------------------+ | | | | | | | | | | | | | ??????????????????????????????????????????? | | ??????????????????????????????????????????? | | ???????????###############????????????????? | | ???????????# ######???????????? | | ???????????# #???????????? | | ???????????# #### #???????????? | | ???????????#### #??# #???????????? | | ??????????????# #??# #???????????? | | ??????????????##### #####??# #########???? | | ??????????????????# ######?# #???? | | ??????????????????# #?######### #???? | | ??????????????????###### #?????????# #???? | | ???????????????????????# #?????????# #???? | | ???????????????????????# #?????????# #???? | | ??????????????????????## ###???????# #???? | | ?????????????????????## # ##??????# #???? | | ????????????????????## ##?????# #???? | | ????????????????????# ##????# #???? | | ????????????????????## ##???# #???? | | ????????????????????# @ #???# #???? | | ????????????????????## = #???# #???? | | ????????????????????# = #???# #???? | | ????????????????????## #???# #???? | | ?????????????????????## #dd #?## ###?? | | ??????????????????????## #### ##? | | ???????????????????????## #?# #? | | ##??????????????????????##### ### #? | | #???????????????????????## ##? | | #???????????????????????# ###### ##?? | | %#??????????????????????## ##???# ##??? | | #??####????????????????# #???# #???? | | #### ##??????####????## ????# #???? | | ###???## ###### ## ##???# #???? | | #### ##### ## ########## #???? | | #### #???? | | """ #???? | | ##### ## """ #############???? | | ????## ### """ #???????????????? | | ?????# ## ## ## #???????????????? | | #????# ####### ### #???????????????? | | #????### #?????######?# #???????????????? | | #??????? #????????????# #???????????????? | | ????? #???????????? ###???????????????? | | #???? #????????????#??????????????????? | +----------------------------------------------------+ Best States ------------- Heat Dissipation 25 Energy Generation 14 Energy Capacity 250 Matter Stores 300 Matter Capacity 300 Sight Range 16 Terrain Scan Density 10 Evasion (%) 50 Recoil Reduction 2 Offensive Hacking 10 Item Schematics ----------------- None Robot Schematics ------------------ None Fabricated ------------ Nothing Alien Tech Used ----------------- None Achievements -------------- None Challenges ------------ None Game ------ Seed HoverGuidanceDoublenader Manual? 0 Play Time 00:29:58 Cumulative 18.3 hours Start 2024.04.03 @ 00:25:47 End 2024.04.03 @ 00:53:12 Sessions 1 Manual Loads 0 Difficulty Rogue Special Mode None Game No. 36 Rogue 36 Adventurer 0 Explorer 0 Win Type - Total 0 Types 0/0/0/0/0/0/0/0/0 Lore% 16 Gallery% 19 Achievement% 19 Wizard Run 0 Options --------- Layout 0 ASCII 0 Keyboard 0 Movement Mouse Keybinds 0 Fullscreen 1 Font 24/Smallcaps Map View 76x50 Zoom Use 0% Tactical HUD 1 Map Filters NONE Filters NONE Steam 1 RUN: c2f6d575-9747-4df6-acda-7b6532571178